[Event "44th Chess Olympiad Open 2022"]
[Site "Chennai"]
[Date "2022.08.07"]
[Round "9.52"]
[White "Duneas, John"]
[Black "Espirito Santo, Waldyr"]
[Result "1/2-1/2"]
[WhiteElo "2031"]
[BlackElo "1922"]
[Annotator "NA RC"]
[PlyCount "59"]
[EventDate "2022.??.??"]
[TimeControl "60"]

1. d4 {[%emt 0:00:04]} e6 {[%emt 0:00:15]} 2. c4 {[%emt 0:00:13]} d5 {[%emt 0:
00:00]} 3. Nc3 {[%emt 0:00:14]} Nf6 {[%emt 0:00:13]} 4. Nf3 {[%emt 0:00:13]}
Be7 {[%emt 0:00:33]} 5. Bg5 {[%emt 0:00:38]} O-O {[%emt 0:00:41]} 6. e3 {
[%emt 0:00:26]} Nbd7 {[%emt 0:00:42]} 7. Bd3 {[%emt 0:02:00]} h6 {[%emt 0:00:
00]} 8. Bf4 {[%emt 0:01:06]} dxc4 {[%emt 0:03:48]} 9. Bxc4 {[%emt 0:00:27]} c5
{[%emt 0:00:34]} 10. O-O {[%emt 0:04:13]} cxd4 {[%emt 0:01:14]} 11. exd4 {
[%emt 0:00:18]} Nb6 {[%emt 0:00:45]} 12. Bb3 {[%emt 0:00:50]} Nbd5 {[%emt 0:00:
00]} 13. Bg3 {[%emt 0:02:37]} b6 {[%emt 0:04:04]} 14. Ne5 {[%emt 0:02:39]} Bb7
{[%emt 0:00:43]} 15. Qe2 {[%emt 0:04:11]} Nxc3 {[%emt 0:01:31]} 16. bxc3 {
[%emt 0:00:10]} Nd5 {[%emt 0:03:02]} 17. Qd3 {[%emt 0:15:24]} Rc8 {[%emt 0:00:
00]} 18. Rac1 {[%emt 0:06:19]} a6 {[%emt 0:12:09]} 19. Bc2 {[%emt 0:02:46]} Nf6
{[%emt 0:01:38]} 20. f3 {[%emt 0:07:15]} Re8 {[%emt 0:04:29]} 21. Ng4 {[%emt 0:
00:00]} Kf8 {[%emt 0:07:02]} 22. Be5 {[%emt 0:03:16]} Bd5 {[%emt 0:02:45]} 23.
Ne3 {[%emt 0:06:20]} Bb7 {[%emt 0:03:52]} 24. Ng4 {[%emt 0:07:58]} Bd5 {
[%emt 0:01:56]} 25. Ne3 {[%emt 0:05:07]} Bb7 {[%emt 0:00:12]} 26. Ng4 {[%emt 0:
00:00]} Rb8 {[%emt 0:03:46]} 27. Ra1 {[%emt 0:00:30]} Rc8 {[%emt 0:00:00]} 28.
Rac1 {[%emt 0:00:06]} Bd5 {[%emt 0:00:01]} 29. Ne3 {[%emt 0:00:34]} Bb7 {
[%emt 0:00:10]} 30. Ng4 {[%emt 0:00:53]} 1/2-1/2

[Event "44th Chess Olympiad Open 2022"]
[Site "Chennai"]
[Date "2022.08.07"]
[Round "9.52"]
[White "Lima, Osvaldo Dos Santos"]
[Black "Stark, John"]
[Result "0-1"]
[WhiteElo "1863"]
[BlackElo "2028"]
[Annotator "RC"]
[PlyCount "152"]
[EventDate "2022.??.??"]
[TimeControl "60"]

1. c4 {[%emt 0:00:10]} e5 {[%emt 0:00:03]} 2. Nc3 {[%emt 0:00:02]} Nf6 {
[%emt 0:00:50]} 3. e4 {[%emt 0:01:10]} Bc5 {[%emt 0:00:52]} 4. h3 {[%emt 0:00:
00]} O-O {[%emt 0:00:59]} 5. Nf3 {[%emt 0:00:57]} c6 {[%emt 0:03:21]} 6. d3 {
[%emt 0:03:22]} d5 {[%emt 0:10:34]} 7. cxd5 {[%emt 0:04:42]} cxd5 {[%emt 0:00:
00]} 8. Be2 {[%emt 0:02:40]} d4 {[%emt 0:03:16]} 9. Nb1 {[%emt 0:02:37]} Nc6 {
[%emt 0:01:12]} 10. O-O {[%emt 0:00:32]} h6 {[%emt 0:02:18]} 11. a3 {[%emt 0:
00:00]} a5 {[%emt 0:00:35]} 12. Nbd2 {[%emt 0:01:19]} Ne8 {[%emt 0:00:56]} 13.
Nc4 {[%emt 0:01:19]} Qe7 {[%emt 0:00:24]} 14. g4 {[%emt 0:01:08]} b5 {[%emt 0:
00:00]} 15. Ncd2 {[%emt 0:00:03]} a4 {[%emt 0:05:12]} 16. Re1 {[%emt 0:00:15]}
Be6 {[%emt 0:02:00]} 17. Bf1 {[%emt 0:08:43]} Nc7 {[%emt 0:03:22]} 18. Bg2 {
[%emt 0:05:05]} Rfc8 {[%emt 0:03:21]} 19. Nf1 {[%emt 0:00:07]} Bb3 {[%emt 0:00:
00]} 20. Qe2 {[%emt 0:00:50]} b4 {[%emt 0:00:45]} 21. Ng3 {[%emt 0:00:35]} bxa3
{[%emt 0:10:05]} 22. bxa3 {[%emt 0:00:40]} Nb5 {[%emt 0:00:22]} 23. Nf5 {
[%emt 0:02:28]} Qe6 {[%emt 0:05:35]} 24. g5 {[%emt 0:00:08]} Nc3 {[%emt 0:00:
00]} 25. Qf1 {[%emt 0:04:04]} h5 {[%emt 0:08:04]} 26. h4 {[%emt 0:01:01]} Qe8 {
[%emt 0:04:09]} 27. Bh3 {[%emt 0:00:30]} Na5 {[%emt 0:00:48]} 28. Ng3 {[%emt 0:
00:00]} g6 {[%emt 0:01:03]} 29. Bxc8 {[%emt 0:03:44]} Rxc8 {[%emt 0:00:06]} 30.
Nd2 {[%emt 0:01:51]} Qe6 {[%emt 0:02:34]} 31. f3 {[%emt 0:05:22]} Bc2 {[%emt 0:
00:00]} 32. Kh2 {[%emt 0:02:37]} Qa6 {[%emt 0:05:41]} 33. f4 {[%emt 0:03:15]}
Bxd3 {[%emt 0:00:40]} 34. Qf3 {[%emt 0:01:43]} exf4 {[%emt 0:01:04]} 35. Qxf4 {
[%emt 0:00:16]} Qe6 {[%emt 0:01:52]} 36. Qf3 {[%emt 0:09:02]} Bb5 {[%emt 0:00:
00]} 37. e5 {[%emt 0:02:29]} Bd7 {[%emt 0:01:23]} 38. Nge4 {[%emt 0:03:42]}
Qxe5+ {[%emt 0:00:12]} 39. Qg3 {[%emt 0:00:01]} Qxg3+ {[%emt 0:01:03]} 40. Kxg3
{[%emt 0:00:53]} Be6 {[%emt 0:04:09]} 41. Nxc5 {[%emt 0:36:33]} Rxc5 {[%emt 0:
00:00]} 42. Bb2 {[%emt 0:01:18]} Rb5 {[%emt 0:03:28]} 43. Bxc3 {[%emt 0:00:53]}
dxc3 {[%emt 0:00:02]} 44. Ne4 {[%emt 0:00:02]} c2 {[%emt 0:03:22]} 45. Rac1 {
[%emt 0:01:23]} Rb3+ {[%emt 0:07:23]} 46. Kf4 {[%emt 0:00:50]} Rh3 {[%emt 0:00:
00]} 47. Rxc2 {[%emt 0:01:33]} Rxh4+ {[%emt 0:00:27]} 48. Ke5 {[%emt 0:04:39]}
Kg7 {[%emt 0:02:23]} 49. Nd6 {[%emt 0:01:36]} Rg4 {[%emt 0:00:00]} 50. Ne4 {
[%emt 0:00:00]} Nc4+ {[%emt 0:00:00]} 51. Rxc4 {[%emt 0:00:00]} Bxc4 {[%emt 0:
00:00]} 52. Re3 {[%emt 0:00:00]} Bb3 {[%emt 0:00:00]} 53. Kd6 {[%emt 0:00:00]}
h4 {[%emt 0:00:00]} 54. Ke5 {[%emt 0:00:00]} Bc2 {[%emt 0:00:00]} 55. Nd6 {
[%emt 0:00:00]} Rxg5+ {[%emt 0:00:00]} 56. Kf4 {[%emt 0:00:00]} Rd5 {[%emt 0:
00:00]} 57. Ne8+ {[%emt 0:00:00]} Kh6 {[%emt 0:00:00]} 58. Re7 {[%emt 0:00:00]}
g5+ {[%emt 0:00:00]} 59. Kf3 {[%emt 0:00:00]} Rf5+ {[%emt 0:00:00]} 60. Kg2 {
[%emt 0:00:00]} Bb3 {[%emt 0:00:00]} 61. Nd6 {[%emt 0:00:00]} Rf4 {[%emt 0:00:
00]} 62. Re8 {[%emt 0:01:01]} Bd5+ {[%emt 0:00:00]} 63. Kh2 {[%emt 0:01:25]}
Rf2+ {[%emt 0:00:00]} 64. Kg1 {[%emt 0:00:03]} Ra2 {[%emt 0:00:00]} 65. Rg8 {
[%emt 0:00:32]} Kh5 {[%emt 0:00:00]} 66. Ne8 {[%emt 0:00:33]} Ra1+ {[%emt 0:00:
00]} 67. Kf2 {[%emt 0:00:37]} Be6 {[%emt 0:02:35]} 68. Nf6+ {[%emt 0:01:20]}
Kh6 {[%emt 0:00:01]} 69. Ne4 {[%emt 0:00:42]} f5 {[%emt 0:00:40]} 70. Rxg5 {
[%emt 0:01:44]} fxe4 {[%emt 0:00:06]} 71. Re5 {[%emt 0:00:02]} Bb3 {[%emt 0:00:
00]} 72. Rxe4 {[%emt 0:00:38]} Kg5 {[%emt 0:00:02]} 73. Re5+ {[%emt 0:00:49]}
Kf4 {[%emt 0:00:01]} 74. Rh5 {[%emt 0:00:05]} Ra2+ {[%emt 0:00:02]} 75. Kg1 {
[%emt 0:00:13]} Rxa3 {[%emt 0:00:12]} 76. Rxh4+ {[%emt 0:01:37]} Kg3 {[%emt 0:
00:00]} 0-1

[Event "44th Chess Olympiad Open 2022"]
[Site "Chennai"]
[Date "2022.08.07"]
[Round "9.52"]
[White "Alegre, Fabio Costa"]
[Black "Croad, Nicolas"]
[Result "1/2-1/2"]
[WhiteElo "1809"]
[BlackElo "2289"]
[Annotator "RC"]
[PlyCount "81"]
[EventDate "2022.??.??"]
[TimeControl "60"]

1. c4 {[%emt 0:00:17]} e6 {[%emt 0:00:08]} 2. g3 {[%emt 0:00:16]} d5 {[%emt 0:
00:00]} 3. Bg2 {[%emt 0:00:07]} Nf6 {[%emt 0:00:07]} 4. Nf3 {[%emt 0:00:33]}
Be7 {[%emt 0:00:31]} 5. O-O {[%emt 0:00:11]} O-O {[%emt 0:00:05]} 6. b3 {
[%emt 0:00:03]} c6 {[%emt 0:01:03]} 7. Bb2 {[%emt 0:00:44]} a5 {[%emt 0:00:14]}
8. d4 {[%emt 0:01:05]} Ne4 {[%emt 0:07:31]} 9. Nfd2 {[%emt 0:00:50]} f5 {
[%emt 0:03:12]} 10. Nxe4 {[%emt 0:00:42]} fxe4 {[%emt 0:00:07]} 11. f3 {
[%emt 0:00:07]} exf3 {[%emt 0:03:19]} 12. exf3 {[%emt 0:00:06]} dxc4 {[%emt 0:
00:00]} 13. bxc4 {[%emt 0:00:27]} e5 {[%emt 0:00:22]} 14. dxe5 {[%emt 0:03:43]}
Qb6+ {[%emt 0:00:29]} 15. Bd4 {[%emt 0:00:08]} Bc5 {[%emt 0:00:04]} 16. Bf2 {
[%emt 0:00:03]} Be6 {[%emt 0:04:19]} 17. Nd2 {[%emt 0:02:38]} Nd7 {[%emt 0:00:
00]} 18. f4 {[%emt 0:01:52]} Bxf2+ {[%emt 0:06:02]} 19. Rxf2 {[%emt 0:00:10]}
Rad8 {[%emt 0:00:10]} 20. Rb1 {[%emt 0:01:16]} Qd4 {[%emt 0:02:36]} 21. Ne4 {
[%emt 0:00:30]} Qa7 {[%emt 0:08:46]} 22. Qe2 {[%emt 0:01:16]} Bf5 {[%emt 0:00:
00]} 23. Rd1 {[%emt 0:01:22]} Bxe4 {[%emt 0:06:57]} 24. Bxe4 {[%emt 0:00:43]}
Nc5 {[%emt 0:02:30]} 25. Rxd8 {[%emt 0:05:01]} Rxd8 {[%emt 0:00:05]} 26. Qe3 {
[%emt 0:00:09]} Qb6 {[%emt 0:02:12]} 27. Kg2 {[%emt 0:00:36]} Qb4 {[%emt 0:00:
00]} 28. Rc2 {[%emt 0:07:09]} Rd1 {[%emt 0:10:39]} 29. Bf3 {[%emt 0:02:45]} Rd3
{[%emt 0:01:03]} 30. Qe2 {[%emt 0:00:30]} Rd8 {[%emt 0:03:39]} 31. Bg4 {
[%emt 0:13:47]} Nd3 {[%emt 0:02:16]} 32. Kh3 {[%emt 0:04:47]} Qa3 {[%emt 0:00:
00]} 33. Qe3 {[%emt 0:04:32]} Qc5 {[%emt 0:04:52]} 34. Qxc5 {[%emt 0:01:50]}
Nxc5 {[%emt 0:00:04]} 35. Be2 {[%emt 0:03:10]} a4 {[%emt 0:01:17]} 36. Kg2 {
[%emt 0:00:24]} Kf7 {[%emt 0:00:17]} 37. Kf3 {[%emt 0:00:11]} Rd4 {[%emt 0:00:
00]} 38. Ke3 {[%emt 0:00:52]} Re4+ {[%emt 0:00:08]} 39. Kf3 {[%emt 0:00:27]}
Rd4 {[%emt 0:00:04]} 40. Ke3 {[%emt 0:00:42]} Re4+ {[%emt 0:00:06]} 41. Kf3 {
[%emt 0:01:19]} 1/2-1/2

[Event "44th Chess Olympiad Open 2022"]
[Site "Chennai"]
[Date "2022.08.07"]
[Round "9.53"]
[White "Miguel, Sergio"]
[Black "Deng, Yu Dong Michael"]
[Result "1/2-1/2"]
[WhiteElo "2274"]
[BlackElo "2028"]
[Annotator "RC"]
[PlyCount "100"]
[EventDate "2022.??.??"]
[TimeControl "60"]

1. d4 {[%emt 0:00:08]} d5 {[%emt 0:00:05]} 2. Nf3 {[%emt 0:00:09]} Nf6 {
[%emt 0:00:32]} 3. c4 {[%emt 0:00:11]} e6 {[%emt 0:00:11]} 4. g3 {[%emt 0:00:
00]} Be7 {[%emt 0:00:22]} 5. Bg2 {[%emt 0:00:06]} O-O {[%emt 0:00:02]} 6. O-O {
[%emt 0:00:22]} dxc4 {[%emt 0:00:02]} 7. Na3 {[%emt 0:02:19]} Bxa3 {[%emt 0:00:
00]} 8. bxa3 {[%emt 0:00:02]} b5 {[%emt 0:15:37]} 9. Ne5 {[%emt 0:02:53]} Nd5 {
[%emt 0:02:31]} 10. Qc2 {[%emt 0:07:02]} Nd7 {[%emt 0:05:51]} 11. Nc6 {[%emt 0:
00:00]} Qe8 {[%emt 0:10:35]} 12. a4 {[%emt 0:00:42]} b4 {[%emt 0:24:28]} 13. e4
{[%emt 0:03:17]} Ne7 {[%emt 0:03:07]} 14. Nxe7+ {[%emt 0:05:21]} Qxe7 {[%emt 0:
00:00]} 15. Qxc4 {[%emt 0:00:30]} Nb6 {[%emt 0:07:08]} 16. Qc2 {[%emt 0:00:30]}
a5 {[%emt 0:07:24]} 17. Bf4 {[%emt 0:01:42]} Bd7 {[%emt 0:03:44]} 18. Qxc7 {
[%emt 0:08:53]} Nxa4 {[%emt 0:01:27]} 19. Bd6 {[%emt 0:13:21]} Qd8 {[%emt 0:00:
00]} 20. Qb7 {[%emt 0:04:02]} Re8 {[%emt 0:01:02]} 21. e5 {[%emt 0:01:00]} Rc8
{[%emt 0:04:37]} 22. a3 {[%emt 0:00:41]} bxa3 {[%emt 0:03:45]} 23. Rxa3 {
[%emt 0:00:57]} Nc3 {[%emt 0:00:23]} 24. Rfa1 {[%emt 0:05:35]} Ne2+ {[%emt 0:
00:00]} 25. Kh1 {[%emt 0:02:37]} Nxd4 {[%emt 0:00:02]} 26. h4 {[%emt 0:04:57]}
Nc2 {[%emt 0:01:21]} 27. Rxa5 {[%emt 0:00:23]} Nxa1 {[%emt 0:02:12]} 28. Rxa1 {
[%emt 0:00:02]} Rc2 {[%emt 0:01:33]} 29. Ra7 {[%emt 0:01:37]} Rxf2 {[%emt 0:00:
00]} 30. Qxd7 {[%emt 0:00:19]} Qxd7 {[%emt 0:00:05]} 31. Rxd7 {[%emt 0:00:10]}
Rc8 {[%emt 0:00:19]} 32. Rc7 {[%emt 0:02:10]} Rxc7 {[%emt 0:00:35]} 33. Bxc7 {
[%emt 0:00:01]} f6 {[%emt 0:00:36]} 34. Kg1 {[%emt 0:00:29]} Rc2 {[%emt 0:00:
00]} 35. Bd6 {[%emt 0:00:10]} fxe5 {[%emt 0:00:27]} 36. Bxe5 {[%emt 0:00:08]}
Kf7 {[%emt 0:00:36]} 37. Kf1 {[%emt 0:00:52]} h5 {[%emt 0:01:45]} 38. Bf3 {
[%emt 0:01:20]} g6 {[%emt 0:00:07]} 39. Be2 {[%emt 0:00:24]} Rc5 {[%emt 0:00:
00]} 40. Bf4 {[%emt 0:00:50]} e5 {[%emt 0:01:02]} 41. Bd2 {[%emt 0:31:50]} Kf6
{[%emt 0:02:01]} 42. Bd3 {[%emt 0:00:00]} Rd5 {[%emt 0:01:54]} 43. Ke2 {
[%emt 0:00:00]} Rd4 {[%emt 0:00:17]} 44. Bg5+ {[%emt 0:00:00]} Kf7 {[%emt 0:00:
00]} 45. Be3 {[%emt 0:00:00]} Rb4 {[%emt 0:00:47]} 46. Kf3 {[%emt 0:00:00]} Kf6
{[%emt 0:00:28]} 47. Bg5+ {[%emt 0:00:00]} Kg7 {[%emt 0:00:23]} 48. Ke3 {
[%emt 0:00:00]} Rg4 {[%emt 0:00:22]} 49. Kf3 {[%emt 0:00:00]} Rb4 {[%emt 0:00:
00]} 50. Ke3 {[%emt 0:00:00]} Rg4 {[%emt 0:00:15]} 1/2-1/2

[Event "44th Chess Olympiad Open 2022"]
[Site "Chennai"]
[Date "2022.08.07"]
[Round "9.53"]
[White "Junior, Domingos"]
[Black "Kwong, Wing Ki"]
[Result "0-1"]
[WhiteElo "2107"]
[BlackElo "1824"]
[Annotator "NA"]
[PlyCount "90"]
[EventDate "2022.??.??"]
[TimeControl "60"]

1. e4 {[%emt 0:00:01]} c5 {[%emt 0:00:29]} 2. Nf3 {[%emt 0:00:02]} Nc6 {
[%emt 0:00:31]} 3. c3 {[%emt 0:00:18]} d5 {[%emt 0:00:36]} 4. e5 {[%emt 0:00:
00]} d4 {[%emt 0:05:04]} 5. Bb5 {[%emt 0:00:47]} Bd7 {[%emt 0:04:46]} 6. cxd4 {
[%emt 0:05:22]} cxd4 {[%emt 0:02:23]} 7. O-O {[%emt 0:01:42]} e6 {[%emt 0:00:
00]} 8. d3 {[%emt 0:01:17]} Nge7 {[%emt 0:03:49]} 9. Na3 {[%emt 0:06:12]} Nf5 {
[%emt 0:02:29]} 10. Bxc6 {[%emt 0:03:12]} Bxc6 {[%emt 0:00:28]} 11. Nc4 {
[%emt 0:00:30]} Be7 {[%emt 0:03:40]} 12. a4 {[%emt 0:01:50]} h5 {[%emt 0:02:40]
} 13. Nfd2 {[%emt 0:01:11]} Qd5 {[%emt 0:07:36]} 14. Ne4 {[%emt 0:01:13]} f6 {
[%emt 0:00:59]} 15. f4 {[%emt 0:00:56]} O-O-O {[%emt 0:00:50]} 16. Bd2 {
[%emt 0:00:30]} Ne3 {[%emt 0:01:52]} 17. Bxe3 {[%emt 0:05:38]} dxe3 {[%emt 0:
00:00]} 18. Qe2 {[%emt 0:00:02]} Kb8 {[%emt 0:02:10]} 19. Rfd1 {[%emt 0:01:26]}
Qd4 {[%emt 0:04:27]} 20. Ned6 {[%emt 0:05:08]} Bxd6 {[%emt 0:17:55]} 21. Nxd6 {
[%emt 0:18:59]} Rhf8 {[%emt 0:00:40]} 22. Rf1 {[%emt 0:04:24]} g5 {[%emt 0:00:
00]} 23. fxg5 {[%emt 0:03:16]} Qxe5 {[%emt 0:00:29]} 24. Nc4 {[%emt 0:00:15]}
Qxg5 {[%emt 0:00:20]} 25. Nxe3 {[%emt 0:00:09]} Rg8 {[%emt 0:01:04]} 26. Rf2 {
[%emt 0:01:42]} h4 {[%emt 0:03:00]} 27. h3 {[%emt 0:13:49]} Qg3 {[%emt 0:08:05]
} 28. Ng4 {[%emt 0:00:50]} f5 {[%emt 0:00:27]} 29. Nh6 {[%emt 0:00:05]} Rg7 {
[%emt 0:07:56]} 30. Rc1 {[%emt 0:15:53]} Bd5 {[%emt 0:02:56]} 31. Rc5 {[%emt 0:
00:00]} Qd6 {[%emt 0:01:48]} 32. Qe3 {[%emt 0:00:49]} f4 {[%emt 0:02:01]} 33.
Qd4 {[%emt 0:01:07]} e5 {[%emt 0:00:52]} 34. Qc3 {[%emt 0:00:29]} Rg5 {[%emt 0:
00:00]} 35. Rc2 {[%emt 0:00:43]} a6 {[%emt 0:03:42]} 36. Rc8+ {[%emt 0:01:09]}
Rxc8 {[%emt 0:00:58]} 37. Qxc8+ {[%emt 0:00:02]} Ka7 {[%emt 0:00:06]} 38. Qc5+
{[%emt 0:02:03]} Qxc5+ {[%emt 0:00:09]} 39. Rxc5 {[%emt 0:00:01]} Rxg2+ {
[%emt 0:00:51]} 40. Kf1 {[%emt 0:00:00]} Bf3 {[%emt 0:00:31]} 41. b4 {[%emt 0:
00:00]} Rb2 {[%emt 0:06:16]} 42. Rxe5 {[%emt 0:00:00]} Bg2+ {[%emt 0:01:44]}
43. Kg1 {[%emt 0:00:00]} Bxh3 {[%emt 0:01:02]} 44. Re4 {[%emt 0:00:00]} f3 {
[%emt 0:01:04]} 45. Rf4 {[%emt 0:00:00]} Rg2+ {[%emt 0:00:22]} 0-1

[Event "44th Chess Olympiad Open 2022"]
[Site "Chennai"]
[Date "2022.08.07"]
[Round "9.53"]
[White "Kannappan, Thanneermalai"]
[Black "Lutuima, Amaro"]
[Result "1/2-1/2"]
[WhiteElo "1699"]
[BlackElo "2048"]
[Annotator "NA"]
[PlyCount "75"]
[EventDate "2022.??.??"]
[TimeControl "60"]

1. e4 {[%emt 0:00:12]} c5 {[%emt 0:00:23]} 2. Nf3 {[%emt 0:00:15]} e6 {[%emt 0:
00:00]} 3. d4 {[%emt 0:00:17]} cxd4 {[%emt 0:00:14]} 4. Nxd4 {[%emt 0:00:14]}
a6 {[%emt 0:01:17]} 5. Bd3 {[%emt 0:00:28]} Nf6 {[%emt 0:00:27]} 6. O-O {
[%emt 0:00:32]} Qc7 {[%emt 0:00:31]} 7. Qe2 {[%emt 0:00:34]} h5 {[%emt 0:02:16]
} 8. h3 {[%emt 0:13:13]} d5 {[%emt 0:13:34]} 9. e5 {[%emt 0:08:26]} Nfd7 {
[%emt 0:00:36]} 10. f4 {[%emt 0:01:33]} Nc5 {[%emt 0:03:40]} 11. Be3 {[%emt 0:
00:00]} Bd7 {[%emt 0:05:55]} 12. Nd2 {[%emt 0:02:22]} Nc6 {[%emt 0:00:24]} 13.
N2f3 {[%emt 0:01:24]} Ne7 {[%emt 0:00:57]} 14. b3 {[%emt 0:13:03]} g6 {[%emt 0:
00:00]} 15. a4 {[%emt 0:04:34]} Nf5 {[%emt 0:01:17]} 16. Bf2 {[%emt 0:05:02]}
Rc8 {[%emt 0:09:07]} 17. g4 {[%emt 0:07:31]} hxg4 {[%emt 0:00:53]} 18. hxg4 {
[%emt 0:00:11]} Nxd4 {[%emt 0:01:59]} 19. Nxd4 {[%emt 0:01:37]} Be7 {[%emt 0:
00:00]} 20. Kg2 {[%emt 0:02:53]} Bc6 {[%emt 0:23:11]} 21. Rh1 {[%emt 0:07:53]}
Kd7 {[%emt 0:00:00]} 22. Rxh8 {[%emt 0:01:45]} Rxh8 {[%emt 0:00:00]} 23. Rh1 {
[%emt 0:07:12]} Rxh1 {[%emt 0:00:00]} 24. Kxh1 {[%emt 0:00:03]} Nxd3 {[%emt 0:
00:00]} 25. Qxd3 {[%emt 0:00:24]} g5 {[%emt 0:01:08]} 26. Bg3 {[%emt 0:03:37]}
gxf4 {[%emt 0:00:56]} 27. Bxf4 {[%emt 0:00:02]} Qc8 {[%emt 0:01:06]} 28. Qh7 {
[%emt 0:00:48]} Qe8 {[%emt 0:02:15]} 29. Kg2 {[%emt 0:01:02]} Kc8 {[%emt 0:00:
00]} 30. c3 {[%emt 0:01:45]} Bd7 {[%emt 0:00:15]} 31. Qg7 {[%emt 0:00:44]} Ba3
{[%emt 0:03:24]} 32. Bg5 {[%emt 0:01:42]} Bc5 {[%emt 0:01:45]} 33. Bf6 {
[%emt 0:00:44]} Kc7 {[%emt 0:01:16]} 34. Kf3 {[%emt 0:00:24]} Kb6 {[%emt 0:00:
00]} 35. Ke3 {[%emt 0:00:47]} Ka7 {[%emt 0:00:32]} 36. Qh8 {[%emt 0:00:41]} Bf8
{[%emt 0:02:46]} 37. Bg7 {[%emt 0:00:22]} Qc8 {[%emt 0:00:44]} 38. Kd3 {
[%emt 0:00:24]} 1/2-1/2

[Event "44th Chess Olympiad Open 2022"]
[Site "Chennai"]
[Date "2022.08.07"]
[Round "9.53"]
[White "Nissinen, Niilo Man"]
[Black "Dias, Vanderson"]
[Result "1/2-1/2"]
[WhiteElo "1693"]
[BlackElo "2139"]
[Annotator "NA"]
[PlyCount "91"]
[EventDate "2022.??.??"]
[TimeControl "60"]

1. e4 {[%emt 0:00:03]} c6 {[%emt 0:00:09]} 2. d4 {[%emt 0:00:13]} d5 {[%emt 0:
00:00]} 3. Nc3 {[%emt 0:00:06]} dxe4 {[%emt 0:05:07]} 4. Nxe4 {[%emt 0:00:10]}
Bf5 {[%emt 0:02:41]} 5. Ng3 {[%emt 0:00:12]} Bg6 {[%emt 0:00:13]} 6. h4 {
[%emt 0:00:11]} h6 {[%emt 0:00:35]} 7. Nf3 {[%emt 0:00:09]} Nd7 {[%emt 0:00:36]
} 8. h5 {[%emt 0:00:08]} Bh7 {[%emt 0:00:14]} 9. Bd3 {[%emt 0:00:11]} Bxd3 {
[%emt 0:00:30]} 10. Qxd3 {[%emt 0:00:07]} e6 {[%emt 0:00:36]} 11. Bd2 {[%emt 0:
00:00]} Qc7 {[%emt 0:04:00]} 12. O-O-O {[%emt 0:00:14]} O-O-O {[%emt 0:02:00]}
13. Ne4 {[%emt 0:02:23]} Ngf6 {[%emt 0:02:38]} 14. g3 {[%emt 0:00:46]} Nxe4 {
[%emt 0:00:38]} 15. Qxe4 {[%emt 0:00:06]} Bd6 {[%emt 0:01:59]} 16. Kb1 {
[%emt 0:06:15]} Kb8 {[%emt 0:06:31]} 17. Qe2 {[%emt 0:03:46]} Ka8 {[%emt 0:00:
00]} 18. c4 {[%emt 0:04:21]} c5 {[%emt 0:05:59]} 19. Bc3 {[%emt 0:03:34]} Rhg8
{[%emt 0:09:35]} 20. d5 {[%emt 0:06:36]} exd5 {[%emt 0:05:34]} 21. cxd5 {
[%emt 0:00:15]} Rge8 {[%emt 0:01:30]} 22. Qb5 {[%emt 0:01:38]} f6 {[%emt 0:00:
00]} 23. Nd2 {[%emt 0:12:24]} Be5 {[%emt 0:04:39]} 24. Nc4 {[%emt 0:06:48]}
Bxc3 {[%emt 0:03:46]} 25. bxc3 {[%emt 0:01:19]} a6 {[%emt 0:07:27]} 26. d6 {
[%emt 0:09:31]} Qc8 {[%emt 0:01:23]} 27. Qb2 {[%emt 0:10:10]} Qc6 {[%emt 0:00:
00]} 28. Rhe1 {[%emt 0:06:43]} Rxe1 {[%emt 0:01:55]} 29. Rxe1 {[%emt 0:00:07]}
b5 {[%emt 0:00:52]} 30. Ne3 {[%emt 0:03:20]} Ne5 {[%emt 0:00:13]} 31. Rd1 {
[%emt 0:08:53]} Rxd6 {[%emt 0:00:16]} 32. Rxd6 {[%emt 0:00:09]} Qxd6 {[%emt 0:
00:00]} 33. Qc2 {[%emt 0:00:54]} Kb8 {[%emt 0:07:04]} 34. Qh7 {[%emt 0:02:43]}
Qd7 {[%emt 0:00:53]} 35. f4 {[%emt 0:06:39]} Nc4 {[%emt 0:03:25]} 36. Qg8+ {
[%emt 0:01:29]} Kb7 {[%emt 0:01:31]} 37. Nxc4 {[%emt 0:01:13]} bxc4 {[%emt 0:
00:00]} 38. Qxc4 {[%emt 0:02:03]} Qb5+ {[%emt 0:00:50]} 39. Qxb5+ {[%emt 0:00:
00]} axb5 {[%emt 0:00:06]} 40. c4 {[%emt 0:01:04]} b4 {[%emt 0:00:30]} 41. a3 {
[%emt 0:09:03]} f5 {[%emt 0:01:29]} 42. axb4 {[%emt 0:00:30]} cxb4 {[%emt 0:00:
00]} 43. Kb2 {[%emt 0:00:07]} Kc6 {[%emt 0:00:59]} 44. Kc2 {[%emt 0:00:10]} Kd6
{[%emt 0:00:48]} 45. Kb2 {[%emt 0:00:06]} Kc6 {[%emt 0:00:43]} 46. Kc2 {
[%emt 0:00:05]} 1/2-1/2

[Event "44th Chess Olympiad Open 2022"]
[Site "Chennai"]
[Date "2022.08.07"]
[Round "9.54"]
[White "Apol, Luitjen Akselsson"]
[Black "Al Busaidi, Hamood"]
[Result "0-1"]
[WhiteElo "2289"]
[BlackElo "1743"]
[Annotator "RC"]
[PlyCount "98"]
[EventDate "2022.??.??"]
[TimeControl "60"]

1. e4 {[%emt 0:00:20]} c5 {[%emt 0:00:49]} 2. Nf3 {[%emt 0:00:30]} g6 {[%emt 0:
00:00]} 3. d4 {[%emt 0:00:23]} cxd4 {[%emt 0:00:21]} 4. Nxd4 {[%emt 0:00:37]}
Nc6 {[%emt 0:00:07]} 5. c4 {[%emt 0:00:06]} Bg7 {[%emt 0:00:05]} 6. Nc2 {
[%emt 0:00:38]} Nf6 {[%emt 0:00:10]} 7. Nc3 {[%emt 0:00:08]} O-O {[%emt 0:00:
00]} 8. Be2 {[%emt 0:00:21]} d6 {[%emt 0:00:07]} 9. O-O {[%emt 0:00:44]} Be6 {
[%emt 0:02:01]} 10. Be3 {[%emt 0:04:28]} Rc8 {[%emt 0:00:41]} 11. Rc1 {[%emt 0:
00:00]} Nd7 {[%emt 0:04:29]} 12. Qd2 {[%emt 0:01:32]} a5 {[%emt 0:01:21]} 13.
f3 {[%emt 0:22:00]} Nc5 {[%emt 0:15:17]} 14. Rfd1 {[%emt 0:01:39]} f5 {[%emt 0:
00:00]} 15. exf5 {[%emt 0:12:28]} Rxf5 {[%emt 0:12:58]} 16. b3 {[%emt 0:10:22]}
b6 {[%emt 0:00:46]} 17. Nd5 {[%emt 0:03:29]} Bxd5 {[%emt 0:17:30]} 18. cxd5 {
[%emt 0:00:05]} Ne5 {[%emt 0:01:11]} 19. Nd4 {[%emt 0:00:46]} Rf7 {[%emt 0:00:
00]} 20. Qc2 {[%emt 0:07:47]} Bf6 {[%emt 0:09:48]} 21. f4 {[%emt 0:01:32]} Ned7
{[%emt 0:01:04]} 22. Bg4 {[%emt 0:00:18]} Bxd4 {[%emt 0:01:17]} 23. Rxd4 {
[%emt 0:04:53]} Rc7 {[%emt 0:04:27]} 24. Qb1 {[%emt 0:08:25]} Rf8 {[%emt 0:00:
00]} 25. f5 {[%emt 0:09:51]} Qe8 {[%emt 0:00:42]} 26. Rf4 {[%emt 0:03:37]} Ne5
{[%emt 0:02:02]} 27. Bd4 {[%emt 0:01:33]} g5 {[%emt 0:01:41]} 28. Rff1 {
[%emt 0:01:14]} Nxg4 {[%emt 0:00:26]} 29. Rc3 {[%emt 0:00:30]} Nf6 {[%emt 0:00:
00]} 30. Qc1 {[%emt 0:00:59]} h6 {[%emt 0:00:48]} 31. h4 {[%emt 0:00:59]} Nh7 {
[%emt 0:00:48]} 32. Rg3 {[%emt 0:00:34]} Ne4 {[%emt 0:00:25]} 33. Qxc7 {
[%emt 0:00:01]} Nxg3 {[%emt 0:00:10]} 34. Re1 {[%emt 0:00:29]} Nxf5 {[%emt 0:
00:00]} 35. Bxb6 {[%emt 0:00:01]} Qh5 {[%emt 0:00:37]} 36. Qd7 {[%emt 0:01:22]}
gxh4 {[%emt 0:00:48]} 37. Bxa5 {[%emt 0:00:36]} h3 {[%emt 0:00:01]} 38. Qe6+ {
[%emt 0:00:34]} Rf7 {[%emt 0:00:22]} 39. Qc8+ {[%emt 0:00:30]} Kg7 {[%emt 0:00:
00]} 40. Bc3+ {[%emt 0:00:23]} Nf6 {[%emt 0:00:23]} 41. gxh3 {[%emt 0:02:56]}
Kh7 {[%emt 0:19:06]} 42. Kh2 {[%emt 0:08:51]} Rg7 {[%emt 0:07:27]} 43. Bxf6 {
[%emt 0:00:53]} exf6 {[%emt 0:00:01]} 44. Re8 {[%emt 0:00:34]} Qf3 {[%emt 0:00:
00]} 45. Rh8+ {[%emt 0:00:05]} Kg6 {[%emt 0:00:07]} 46. Qe8+ {[%emt 0:00:29]}
Kg5 {[%emt 0:00:47]} 47. Qe1 {[%emt 0:00:33]} Kh5 {[%emt 0:00:32]} 48. Qe8+ {
[%emt 0:01:15]} Rg6 {[%emt 0:00:16]} 49. Rg8 {[%emt 0:02:28]} Qg2# {[%emt 0:00:
00]} 0-1